[Event "December 5 Late 2023"]
[Site "https://www.chess.com"]
[Date "2023.12.05"]
[Round "3"]
[White "Ventura Bolet, Maxim"]
[Black "Hambleton, Aman"]
[Result "0-1"]
[Board "74"]
[TimeControl "180+1"]
[WhiteFideId "22238824"]
[BlackFideId "2606577"]
[WhiteElo "2485"]
[BlackElo "2688"]
[WhiteTeam "ESP"]
[BlackTeam "CAN"]
[WhiteClock "0:00:01"]
[BlackClock "0:00:06"]

1. Nf3 {[%clk 0:03:00]}  d5 {[%clk 0:02:48]} 2. g3 {[%clk 0:03:00]}  c6 {[%clk 0:02:48]} 3. Bg2 {[%clk 0:03:00]}  Nf6 {[%clk 0:02:49]} 4. O-O {[%clk 0:02:59]}  Bf5 {[%clk 0:02:50]} 5. d3 {[%clk 0:02:56]}  e6 {[%clk 0:02:43]} 6. Nbd2 {[%clk 0:02:56]}  h6 {[%clk 0:02:42]} 7. c3 {[%clk 0:02:52]}  Bh7 {[%clk 0:02:43]} 8. Qe1 {[%clk 0:02:43]}  Be7 {[%clk 0:02:44]} 9. e4 {[%clk 0:02:43]}  a5 {[%clk 0:02:45]} 10. Qe2 {[%clk 0:02:41]}  a4 {[%clk 0:02:44]} 11. Rd1 {[%clk 0:02:28]}  Qa5 {[%clk 0:02:39]} 12. Nf1 {[%clk 0:02:07]}  dxe4 {[%clk 0:02:35]} 13. dxe4 {[%clk 0:02:07]}  Bxe4 {[%clk 0:02:35]} 14. Bf4 {[%clk 0:02:00]}  Nbd7 {[%clk 0:02:34]} 15. Ne3 {[%clk 0:01:57]}  Qa6 {[%clk 0:02:19]} 16. Qxa6 {[%clk 0:01:53]}  Rxa6 {[%clk 0:02:19]} 17. Nc4 {[%clk 0:01:52]}  O-O {[%clk 0:01:42]} 18. Bd6 {[%clk 0:01:46]}  Bxd6 {[%clk 0:01:36]} 19. Nxd6 {[%clk 0:01:47]}  Bxf3 {[%clk 0:01:35]} 20. Bxf3 {[%clk 0:01:47]}  Rb8 {[%clk 0:01:24]} 21. Rd2 {[%clk 0:01:46]}  Kf8 {[%clk 0:01:17]} 22. Rad1 {[%clk 0:01:45]}  Ke7 {[%clk 0:01:16]} 23. Re1 {[%clk 0:01:36]}  g6 {[%clk 0:01:12]} 24. h4 {[%clk 0:01:33]}  h5 {[%clk 0:01:11]} 25. Red1 {[%clk 0:01:28]}  Ne5 {[%clk 0:00:59]} 26. Bg2 {[%clk 0:01:17]}  Ra7 {[%clk 0:00:37]} 27. f4 {[%clk 0:01:02]}  Ned7 {[%clk 0:00:30]} 28. Bf3 {[%clk 0:00:51]}  Nc5 {[%clk 0:00:30]} 29. Nc4 {[%clk 0:00:44]}  Nd5 {[%clk 0:00:13]} 30. Re2 {[%clk 0:00:35]}  Rd8 {[%clk 0:00:11]} 31. Ne5 {[%clk 0:00:28]}  Nxc3 {[%clk 0:00:05]} 32. Rxd8 {[%clk 0:00:22]}  Nxe2+ {[%clk 0:00:06]} 33. Bxe2 {[%clk 0:00:22]}  Kxd8 {[%clk 0:00:06]} 34. Nxf7+ {[%clk 0:00:22]}  Ke7 {[%clk 0:00:06]} 35. Ne5 {[%clk 0:00:22]}  Kf6 {[%clk 0:00:06]} 36. Kf2 {[%clk 0:00:17]}  Ra8 {[%clk 0:00:05]} 37. Ke3 {[%clk 0:00:17]}  Rd8 {[%clk 0:00:05]} 38. Bc4 {[%clk 0:00:15]}  Nd7 {[%clk 0:00:03]} 39. Nf3 {[%clk 0:00:12]}  e5 {[%clk 0:00:04]} 40. Ng5 {[%clk 0:00:09]}  exf4+ {[%clk 0:00:03]} 41. Kxf4 {[%clk 0:00:10]}  Nc5 {[%clk 0:00:03]} 42. Nh7+ {[%clk 0:00:10]}  Kg7 {[%clk 0:00:03]} 43. Ng5 {[%clk 0:00:10]}  Rd4+ {[%clk 0:00:04]} 44. Ke5 {[%clk 0:00:08]}  Rxc4 {[%clk 0:00:05]} 45. Kd6 {[%clk 0:00:08]}  Ne4+ {[%clk 0:00:05]} 46. Nxe4 {[%clk 0:00:06]}  Rxe4 {[%clk 0:00:06]} 47. Kc7 {[%clk 0:00:06]}  b5 {[%clk 0:00:05]} 48. Kxc6 {[%clk 0:00:01]}  Rb4 {[%clk 0:00:06]} 0-1

[Event "December 5 Late 2023"]
[Site "https://www.chess.com"]
[Date "2023.12.05"]
[Round "3"]
[White "Kanakaris, Georgios"]
[Black "Tabuenca Mendataurigoitia, Daniel"]
[Result "1-0"]
[Board "75"]
[TimeControl "180+1"]
[WhiteFideId "4209460"]
[BlackFideId "24563617"]
[WhiteElo "2679"]
[BlackElo "2484"]
[WhiteTeam "GRE"]
[BlackTeam "ESP"]
[WhiteClock "0:00:32"]
[BlackClock "0:00:46"]

1. e4 {[%clk 0:03:00]}  Nc6 {[%clk 0:02:59]} 2. Nc3 {[%clk 0:02:59]}  e5 {[%clk 0:02:54]} 3. Bc4 {[%clk 0:02:59]}  Nf6 {[%clk 0:02:51]} 4. d3 {[%clk 0:02:56]}  d6 {[%clk 0:02:39]} 5. Nf3 {[%clk 0:02:42]}  h6 {[%clk 0:02:39]} 6. O-O {[%clk 0:02:40]}  Na5 {[%clk 0:02:33]} 7. Bb3 {[%clk 0:02:37]}  c6 {[%clk 0:02:31]} 8. d4 {[%clk 0:02:33]}  Qc7 {[%clk 0:02:23]} 9. h3 {[%clk 0:02:26]}  Be7 {[%clk 0:02:12]} 10. Be3 {[%clk 0:02:16]}  O-O {[%clk 0:02:09]} 11. Qe2 {[%clk 0:02:10]}  Nxb3 {[%clk 0:02:08]} 12. axb3 {[%clk 0:02:09]}  b6 {[%clk 0:02:03]} 13. Rfd1 {[%clk 0:02:03]}  Re8 {[%clk 0:02:00]} 14. dxe5 {[%clk 0:01:36]}  dxe5 {[%clk 0:01:45]} 15. Ne1 {[%clk 0:01:22]}  Be6 {[%clk 0:01:37]} 16. Nd3 {[%clk 0:01:20]}  Red8 {[%clk 0:01:34]} 17. Ra6 {[%clk 0:01:10]}  Bc8 {[%clk 0:01:17]} 18. Bxb6 {[%clk 0:00:58]}  axb6 {[%clk 0:01:12]} 19. Rxa8 {[%clk 0:00:58]}  Bb7 {[%clk 0:01:08]} 20. Rxd8+ {[%clk 0:00:57]}  Qxd8 {[%clk 0:01:09]} 21. Nxe5 {[%clk 0:00:56]}  Qc7 {[%clk 0:01:07]} 22. Ng4 {[%clk 0:00:52]}  Nd7 {[%clk 0:01:03]} 23. Qd2 {[%clk 0:00:46]}  Nc5 {[%clk 0:00:58]} 24. b4 {[%clk 0:00:45]}  Bg5 {[%clk 0:00:58]} 25. f4 {[%clk 0:00:32]}  Bxf4 {[%clk 0:00:46]} 26. Qd8+ {[%clk 0:00:32]} 1-0

[Event "December 5 Late 2023"]
[Site "https://www.chess.com"]
[Date "2023.12.05"]
[Round "3"]
[White "Amburgy, Ryan"]
[Black "Coca, Cristi-Iulian"]
[Result "1-0"]
[Board "77"]
[TimeControl "180+1"]
[WhiteFideId "30924820"]
[BlackFideId "1237004"]
[WhiteElo "2669"]
[BlackElo "2476"]
[WhiteTeam "USA"]
[BlackTeam "ROU"]
[WhiteClock "0:01:22"]
[BlackClock "0:00:41"]

1. d4 {[%clk 0:03:00]}  Nf6 {[%clk 0:02:59]} 2. c4 {[%clk 0:03:01]}  g6 {[%clk 0:03:00]} 3. Nc3 {[%clk 0:03:00]}  Bg7 {[%clk 0:03:01]} 4. e4 {[%clk 0:03:00]}  d6 {[%clk 0:03:02]} 5. Nf3 {[%clk 0:03:01]}  O-O {[%clk 0:03:02]} 6. Be2 {[%clk 0:03:02]}  Nbd7 {[%clk 0:03:02]} 7. O-O {[%clk 0:03:01]}  e5 {[%clk 0:03:03]} 8. Be3 {[%clk 0:03:02]}  Qe7 {[%clk 0:03:01]} 9. Qc2 {[%clk 0:03:01]}  c6 {[%clk 0:03:01]} 10. Rad1 {[%clk 0:02:57]}  Kh8 {[%clk 0:02:55]} 11. h3 {[%clk 0:02:45]}  Ng8 {[%clk 0:02:52]} 12. Bg5 {[%clk 0:02:36]}  f6 {[%clk 0:02:49]} 13. Bh4 {[%clk 0:02:36]}  Qe8 {[%clk 0:02:30]} 14. Rfe1 {[%clk 0:02:26]}  g5 {[%clk 0:02:16]} 15. Bg3 {[%clk 0:02:26]}  Qg6 {[%clk 0:02:15]} 16. dxe5 {[%clk 0:02:16]}  fxe5 {[%clk 0:02:10]} 17. Qd2 {[%clk 0:02:13]}  g4 {[%clk 0:02:06]} 18. Nh4 {[%clk 0:02:13]}  Qf7 {[%clk 0:01:55]} 19. Bxg4 {[%clk 0:02:02]}  Nb6 {[%clk 0:01:44]} 20. b3 {[%clk 0:01:53]}  Bxg4 {[%clk 0:01:40]} 21. hxg4 {[%clk 0:01:54]}  Nh6 {[%clk 0:01:40]} 22. f3 {[%clk 0:01:51]}  Rad8 {[%clk 0:01:36]} 23. c5 {[%clk 0:01:48]}  Nc8 {[%clk 0:01:18]} 24. cxd6 {[%clk 0:01:48]}  Rxd6 {[%clk 0:01:17]} 25. Qg5 {[%clk 0:01:45]}  Rxd1 {[%clk 0:01:12]} 26. Rxd1 {[%clk 0:01:46]}  Qe8 {[%clk 0:00:57]} 27. Qd2 {[%clk 0:01:26]}  Nf7 {[%clk 0:00:46]} 28. Qd7 {[%clk 0:01:24]}  Qxd7 {[%clk 0:00:43]} 29. Rxd7 {[%clk 0:01:25]}  Ncd6 {[%clk 0:00:44]} 30. Nf5 {[%clk 0:01:23]}  Bf6 {[%clk 0:00:41]} 31. Nxd6 {[%clk 0:01:22]} 1-0

[Event "December 5 Late 2023"]
[Site "https://www.chess.com"]
[Date "2023.12.05"]
[Round "3"]
[White "Ladan, Nicholas"]
[Black "Zavgorodniy, Sergiy"]
[Result "0-1"]
[Board "78"]
[TimeControl "180+1"]
[WhiteFideId "30918855"]
[BlackFideId "14110148"]
[WhiteElo "2476"]
[BlackElo "2650"]
[WhiteTeam "USA"]
[BlackTeam "UKR"]
[WhiteClock "0:00:03"]
[BlackClock "0:00:55"]

1. d4 {[%clk 0:03:00]}  d5 {[%clk 0:02:59]} 2. Nf3 {[%clk 0:03:01]}  Nf6 {[%clk 0:02:59]} 3. g3 {[%clk 0:03:02]}  e6 {[%clk 0:02:59]} 4. Bg2 {[%clk 0:03:03]}  Be7 {[%clk 0:02:59]} 5. O-O {[%clk 0:03:04]}  O-O {[%clk 0:03:00]} 6. c4 {[%clk 0:03:05]}  c6 {[%clk 0:03:00]} 7. Qc2 {[%clk 0:03:04]}  Nbd7 {[%clk 0:03:00]} 8. Nbd2 {[%clk 0:03:05]}  b6 {[%clk 0:03:00]} 9. e4 {[%clk 0:03:05]}  dxe4 {[%clk 0:03:01]} 10. Nxe4 {[%clk 0:03:05]}  Nxe4 {[%clk 0:02:55]} 11. Qxe4 {[%clk 0:03:06]}  Bb7 {[%clk 0:02:55]} 12. Rd1 {[%clk 0:03:06]}  Nf6 {[%clk 0:02:53]} 13. Qe2 {[%clk 0:03:04]}  Qc8 {[%clk 0:02:53]} 14. Bf4 {[%clk 0:02:54]}  Re8 {[%clk 0:02:52]} 15. Ne5 {[%clk 0:02:49]}  c5 {[%clk 0:02:49]} 16. dxc5 {[%clk 0:02:46]}  Bxg2 {[%clk 0:02:46]} 17. Kxg2 {[%clk 0:02:44]}  Qxc5 {[%clk 0:02:46]} 18. b3 {[%clk 0:02:39]}  Rad8 {[%clk 0:02:40]} 19. Qf3 {[%clk 0:02:34]}  Rc8 {[%clk 0:02:25]} 20. h4 {[%clk 0:02:32]}  b5 {[%clk 0:02:13]} 21. Rac1 {[%clk 0:02:26]}  bxc4 {[%clk 0:02:04]} 22. Rxc4 {[%clk 0:02:22]}  Qb6 {[%clk 0:02:01]} 23. Nc6 {[%clk 0:02:16]}  Bf8 {[%clk 0:01:52]} 24. Bd6 {[%clk 0:02:07]}  Nd5 {[%clk 0:01:37]} 25. Bxf8 {[%clk 0:01:44]}  Kxf8 {[%clk 0:01:38]} 26. Ne5 {[%clk 0:01:36]}  Qb7 {[%clk 0:01:34]} 27. Rb4 {[%clk 0:00:37]}  Qe7 {[%clk 0:01:27]} 28. Ra4 {[%clk 0:00:27]}  Rc7 {[%clk 0:01:21]} 29. Re1 {[%clk 0:00:25]}  Kg8 {[%clk 0:01:17]} 30. h5 {[%clk 0:00:22]}  h6 {[%clk 0:01:16]} 31. Ra5 {[%clk 0:00:13]}  Rec8 {[%clk 0:01:12]} 32. Ng4 {[%clk 0:00:07]}  Qb4 {[%clk 0:01:03]} 33. Ra4 {[%clk 0:00:06]}  Qxe1 {[%clk 0:01:03]} 34. Nxh6+ {[%clk 0:00:03]}  gxh6 {[%clk 0:01:02]} 35. Rg4+ {[%clk 0:00:04]}  Kf8 {[%clk 0:01:01]} 36. Qd3 {[%clk 0:00:03]}  Rc1 {[%clk 0:00:55]} 37. Qh7 {[%clk 0:00:03]}  Qh1# {[%clk 0:00:55]} 0-1

[Event "December 5 Late 2023"]
[Site "https://www.chess.com"]
[Date "2023.12.05"]
[Round "3"]
[White "Mizzi, Jack"]
[Black "Sturt, Raven"]
[Result "0-1"]
[Board "79"]
[TimeControl "180+1"]
[WhiteFideId "5602521"]
[BlackFideId "2007304"]
[WhiteElo "2468"]
[BlackElo "2646"]
[WhiteTeam "MLT"]
[BlackTeam "USA"]
[WhiteClock "0:00:01"]
[BlackClock "0:01:01"]

1. d4 {[%clk 0:03:00]}  f5 {[%clk 0:02:59]} 2. g3 {[%clk 0:02:59]}  Nf6 {[%clk 0:02:59]} 3. Bg2 {[%clk 0:03:00]}  g6 {[%clk 0:03:00]} 4. Nh3 {[%clk 0:02:59]}  Bg7 {[%clk 0:03:00]} 5. O-O {[%clk 0:03:00]}  O-O {[%clk 0:03:01]} 6. c4 {[%clk 0:03:00]}  e6 {[%clk 0:03:01]} 7. Nc3 {[%clk 0:03:00]}  d6 {[%clk 0:02:57]} 8. b4 {[%clk 0:02:53]}  h6 {[%clk 0:02:48]} 9. Nf4 {[%clk 0:02:34]}  Qe8 {[%clk 0:02:47]} 10. e4 {[%clk 0:02:29]}  g5 {[%clk 0:02:41]} 11. Nd3 {[%clk 0:02:29]}  Nc6 {[%clk 0:02:41]} 12. exf5 {[%clk 0:01:58]}  Nxd4 {[%clk 0:02:35]} 13. fxe6 {[%clk 0:01:49]}  Bxe6 {[%clk 0:02:32]} 14. Bxb7 {[%clk 0:01:45]}  Rb8 {[%clk 0:02:31]} 15. Bg2 {[%clk 0:01:38]}  Bxc4 {[%clk 0:02:23]} 16. Re1 {[%clk 0:01:31]}  Qg6 {[%clk 0:02:22]} 17. Ne4 {[%clk 0:01:19]}  Nd5 {[%clk 0:02:12]} 18. Bb2 {[%clk 0:01:09]}  Bxd3 {[%clk 0:02:06]} 19. Qxd3 {[%clk 0:01:09]}  Nxb4 {[%clk 0:02:07]} 20. Qd1 {[%clk 0:00:24]}  Ndc2 {[%clk 0:02:01]} 21. Bxg7 {[%clk 0:00:18]}  Kxg7 {[%clk 0:02:01]} 22. Rc1 {[%clk 0:00:14]}  Nxe1 {[%clk 0:01:59]} 23. Rxc7+ {[%clk 0:00:11]}  Kg8 {[%clk 0:01:52]} 24. Qxe1 {[%clk 0:00:05]}  Rfc8 {[%clk 0:01:43]} 25. Rxa7 {[%clk 0:00:04]}  Nd3 {[%clk 0:01:37]} 26. Qe3 {[%clk 0:00:05]}  Rc1+ {[%clk 0:01:37]} 27. Bf1 {[%clk 0:00:05]}  Rxf1+ {[%clk 0:01:07]} 28. Kxf1 {[%clk 0:00:06]}  Rb1+ {[%clk 0:01:07]} 29. Kg2 {[%clk 0:00:05]}  Ne1+ {[%clk 0:01:06]} 30. Kg1 {[%clk 0:00:02]}  Nc2+ {[%clk 0:01:00]} 31. Kg2 {[%clk 0:00:02]}  Nxe3+ {[%clk 0:01:01]} 32. fxe3 {[%clk 0:00:01]}  Qxe4+ {[%clk 0:01:01]} 0-1

[Event "December 5 Late 2023"]
[Site "https://www.chess.com"]
[Date "2023.12.05"]
[Round "3"]
[White "Djabri, Massinas"]
[Black "Rojas Alarcon, Julian Antonio"]
[Result "1-0"]
[Board "84"]
[TimeControl "180+1"]
[WhiteFideId "7905726"]
[BlackFideId "5107407"]
[WhiteElo "2453"]
[BlackElo "2633"]
[WhiteTeam "ALG"]
[BlackTeam "MEX"]
[WhiteClock "0:00:46"]
[BlackClock "0:01:09"]

1. d4 {[%clk 0:03:00]}  Nf6 {[%clk 0:02:57]} 2. c4 {[%clk 0:03:01]}  g6 {[%clk 0:02:57]} 3. Nc3 {[%clk 0:03:01]}  d5 {[%clk 0:02:58]} 4. Bg5 {[%clk 0:02:53]}  Ne4 {[%clk 0:02:53]} 5. Bh4 {[%clk 0:02:49]}  Bg7 {[%clk 0:02:51]} 6. cxd5 {[%clk 0:02:45]}  Nxc3 {[%clk 0:02:50]} 7. bxc3 {[%clk 0:02:46]}  Qxd5 {[%clk 0:02:50]} 8. Nf3 {[%clk 0:02:43]}  c5 {[%clk 0:02:51]} 9. e3 {[%clk 0:02:42]}  cxd4 {[%clk 0:02:51]} 10. cxd4 {[%clk 0:02:41]}  Nc6 {[%clk 0:02:52]} 11. Be2 {[%clk 0:02:37]}  Qa5+ {[%clk 0:02:51]} 12. Qd2 {[%clk 0:02:30]}  Bf5 {[%clk 0:02:49]} 13. O-O {[%clk 0:02:25]}  Qxd2 {[%clk 0:02:48]} 14. Nxd2 {[%clk 0:02:26]}  O-O {[%clk 0:02:47]} 15. Rac1 {[%clk 0:02:20]}  Rfd8 {[%clk 0:02:46]} 16. Nb3 {[%clk 0:02:13]}  e5 {[%clk 0:02:39]} 17. Bxd8 {[%clk 0:02:12]}  Rxd8 {[%clk 0:02:33]} 18. dxe5 {[%clk 0:02:12]}  Nxe5 {[%clk 0:02:31]} 19. Rfd1 {[%clk 0:02:12]}  Rb8 {[%clk 0:02:30]} 20. Rc7 {[%clk 0:02:09]}  Nc6 {[%clk 0:02:16]} 21. Nc5 {[%clk 0:02:02]}  Na5 {[%clk 0:02:16]} 22. e4 {[%clk 0:01:53]}  Be5 {[%clk 0:02:12]} 23. Nd7 {[%clk 0:01:24]}  Bxd7 {[%clk 0:01:55]} 24. Rcxd7 {[%clk 0:01:25]}  Rc8 {[%clk 0:01:56]} 25. Rd8+ {[%clk 0:01:24]}  Rxd8 {[%clk 0:01:55]} 26. Rxd8+ {[%clk 0:01:25]}  Kg7 {[%clk 0:01:56]} 27. Rd5 {[%clk 0:01:20]}  Bc7 {[%clk 0:01:52]} 28. Bd1 {[%clk 0:01:18]}  Kf6 {[%clk 0:01:50]} 29. Rd7 {[%clk 0:01:17]}  Bb6 {[%clk 0:01:47]} 30. Bb3 {[%clk 0:01:17]}  Ke5 {[%clk 0:01:43]} 31. Rxf7 {[%clk 0:01:17]}  Kxe4 {[%clk 0:01:40]} 32. Rxh7 {[%clk 0:01:16]}  Nc6 {[%clk 0:01:40]} 33. Rxb7 {[%clk 0:01:15]}  Nd4 {[%clk 0:01:39]} 34. Rg7 {[%clk 0:01:14]}  Kf5 {[%clk 0:01:39]} 35. h3 {[%clk 0:01:10]}  Ne2+ {[%clk 0:01:35]} 36. Kf1 {[%clk 0:01:10]}  Nf4 {[%clk 0:01:36]} 37. Rf7+ {[%clk 0:01:08]}  Ke5 {[%clk 0:01:35]} 38. h4 {[%clk 0:01:03]}  Nd3 {[%clk 0:01:30]} 39. Bc2 {[%clk 0:01:00]}  Nb4 {[%clk 0:01:25]} 40. Bb1 {[%clk 0:01:00]}  Ke6 {[%clk 0:01:24]} 41. Rg7 {[%clk 0:00:59]}  Nd5 {[%clk 0:01:24]} 42. Rxg6+ {[%clk 0:00:58]}  Kf7 {[%clk 0:01:25]} 43. Rc6 {[%clk 0:00:53]}  Kg7 {[%clk 0:01:19]} 44. h5 {[%clk 0:00:53]}  Ne7 {[%clk 0:01:15]} 45. h6+ {[%clk 0:00:52]}  Kf7 {[%clk 0:01:14]} 46. h7 {[%clk 0:00:49]}  Bd4 {[%clk 0:01:14]} 47. Rc7 {[%clk 0:00:47]}  Ke6 {[%clk 0:01:09]} 48. Rxa7 {[%clk 0:00:46]} 1-0

[Event "December 5 Late 2023"]
[Site "https://www.chess.com"]
[Date "2023.12.05"]
[Round "3"]
[White "Kraiouchkine, Nikita"]
[Black "Seemann, Jakub"]
[Result "1-0"]
[Board "85"]
[TimeControl "180+1"]
[WhiteFideId "2607140"]
[BlackFideId "21874697"]
[WhiteElo "2451"]
[BlackElo "2628"]
[WhiteTeam "CAN"]
[BlackTeam "POL"]
[WhiteClock "0:00:10"]
[BlackClock "0:00:04"]

1. e4 {[%clk 0:03:00]}  e6 {[%clk 0:02:58]} 2. d4 {[%clk 0:02:59]}  d5 {[%clk 0:02:59]} 3. e5 {[%clk 0:02:57]}  c5 {[%clk 0:02:58]} 4. c3 {[%clk 0:02:57]}  Bd7 {[%clk 0:02:59]} 5. Nf3 {[%clk 0:02:49]}  Qb6 {[%clk 0:02:58]} 6. a3 {[%clk 0:02:49]}  Bb5 {[%clk 0:02:56]} 7. b4 {[%clk 0:02:33]}  cxd4 {[%clk 0:02:51]} 8. Bxb5+ {[%clk 0:02:26]}  Qxb5 {[%clk 0:02:52]} 9. Nxd4 {[%clk 0:02:22]}  Qd7 {[%clk 0:02:52]} 10. O-O {[%clk 0:02:19]}  Nc6 {[%clk 0:02:51]} 11. f4 {[%clk 0:02:18]}  Nge7 {[%clk 0:02:48]} 12. Be3 {[%clk 0:02:15]}  a6 {[%clk 0:02:44]} 13. Nd2 {[%clk 0:02:13]}  Nxd4 {[%clk 0:02:43]} 14. Bxd4 {[%clk 0:02:13]}  Nf5 {[%clk 0:02:42]} 15. Nb3 {[%clk 0:02:10]}  Be7 {[%clk 0:02:39]} 16. Qd3 {[%clk 0:02:06]}  O-O {[%clk 0:02:38]} 17. g4 {[%clk 0:01:57]}  Nxd4 {[%clk 0:02:37]} 18. Nxd4 {[%clk 0:01:50]}  f6 {[%clk 0:02:17]} 19. Rae1 {[%clk 0:01:32]}  fxe5 {[%clk 0:02:16]} 20. Rxe5 {[%clk 0:01:30]}  Bf6 {[%clk 0:02:14]} 21. Re3 {[%clk 0:01:22]}  Rae8 {[%clk 0:02:03]} 22. Rfe1 {[%clk 0:01:07]}  Bh4 {[%clk 0:01:43]} 23. Rf1 {[%clk 0:01:07]}  e5 {[%clk 0:01:24]} 24. Nf5 {[%clk 0:00:43]}  e4 {[%clk 0:01:21]} 25. Qd2 {[%clk 0:00:25]}  Bd8 {[%clk 0:01:11]} 26. Rg3 {[%clk 0:00:24]}  Bb6+ {[%clk 0:01:09]} 27. Kg2 {[%clk 0:00:23]}  Rxf5 {[%clk 0:00:58]} 28. gxf5 {[%clk 0:00:23]}  Qxf5 {[%clk 0:00:59]} 29. Rg5 {[%clk 0:00:20]}  Qf6 {[%clk 0:00:32]} 30. Qxd5+ {[%clk 0:00:19]}  Kh8 {[%clk 0:00:32]} 31. Qd7 {[%clk 0:00:14]}  Rb8 {[%clk 0:00:17]} 32. Rg3 {[%clk 0:00:09]}  e3 {[%clk 0:00:16]} 33. Qg4 {[%clk 0:00:09]}  Rd8 {[%clk 0:00:14]} 34. Kh1 {[%clk 0:00:09]}  h6 {[%clk 0:00:15]} 35. f5 {[%clk 0:00:09]}  Rd2 {[%clk 0:00:12]} 36. Qf3 {[%clk 0:00:08]}  Qxc3 {[%clk 0:00:04]} 37. f6 {[%clk 0:00:09]}  Qxf6 {[%clk 0:00:04]} 38. Qxf6 {[%clk 0:00:10]}  gxf6 {[%clk 0:00:05]} 39. Rxf6 {[%clk 0:00:11]}  Kh7 {[%clk 0:00:05]} 40. Rxb6 {[%clk 0:00:10]}  Rd1+ {[%clk 0:00:04]} 41. Rg1 {[%clk 0:00:10]}  e2 {[%clk 0:00:04]} 42. Re6 {[%clk 0:00:10]}  Rd2 {[%clk 0:00:04]} 43. Re1 {[%clk 0:00:10]}  Ra2 {[%clk 0:00:04]} 44. Re3 {[%clk 0:00:09]}  Rxa3 {[%clk 0:00:04]} 45. Rxa3 {[%clk 0:00:10]} 1-0

[Event "December 5 Late 2023"]
[Site "https://www.chess.com"]
[Date "2023.12.05"]
[Round "3"]
[White "Miranda, Rafael"]
[Black "Rama, Tejas"]
[Result "0-1"]
[Board "86"]
[TimeControl "180+1"]
[WhiteFideId "130990"]
[BlackFideId "30907381"]
[WhiteElo "2627"]
[BlackElo "2448"]
[WhiteTeam "ARG"]
[BlackTeam "USA"]
[WhiteClock "0:01:10"]
[BlackClock "0:00:45"]

1. Nf3 {[%clk 0:03:00]}  d5 {[%clk 0:02:59]} 2. g3 {[%clk 0:03:00]}  Nf6 {[%clk 0:02:59]} 3. Bg2 {[%clk 0:03:01]}  c5 {[%clk 0:02:59]} 4. O-O {[%clk 0:03:01]}  h6 {[%clk 0:02:59]} 5. c4 {[%clk 0:03:02]}  d4 {[%clk 0:02:42]} 6. d3 {[%clk 0:03:02]}  Nc6 {[%clk 0:02:41]} 7. e3 {[%clk 0:03:02]}  e5 {[%clk 0:02:36]} 8. exd4 {[%clk 0:03:02]}  exd4 {[%clk 0:02:37]} 9. Re1+ {[%clk 0:03:02]}  Be7 {[%clk 0:02:38]} 10. Ne5 {[%clk 0:03:01]}  Nxe5 {[%clk 0:02:37]} 11. Rxe5 {[%clk 0:03:01]}  O-O {[%clk 0:02:37]} 12. Nd2 {[%clk 0:02:57]}  Bd6 {[%clk 0:02:19]} 13. Re1 {[%clk 0:02:56]}  Qc7 {[%clk 0:02:12]} 14. Ne4 {[%clk 0:02:52]}  Nxe4 {[%clk 0:02:06]} 15. Bxe4 {[%clk 0:02:53]}  Bd7 {[%clk 0:01:43]} 16. Qf3 {[%clk 0:02:48]}  Rae8 {[%clk 0:01:37]} 17. Bd2 {[%clk 0:02:40]}  Kh8 {[%clk 0:01:25]} 18. Bxh6 {[%clk 0:01:51]}  f5 {[%clk 0:01:21]} 19. Qh5 {[%clk 0:01:44]}  fxe4 {[%clk 0:01:05]} 20. Qg6 {[%clk 0:01:33]}  Be5 {[%clk 0:00:52]} 21. Rxe4 {[%clk 0:01:28]}  Bf5 {[%clk 0:00:51]} 22. Bxg7+ {[%clk 0:01:14]}  Qxg7 {[%clk 0:00:49]} 23. Qh5+ {[%clk 0:01:10]}  Qh7 {[%clk 0:00:45]} 0-1

[Event "December 5 Late 2023"]
[Site "https://www.chess.com"]
[Date "2023.12.05"]
[Round "3"]
[White "Topalov, Aleksandar"]
[Black "Lymar, Vladislav"]
[Result "1-0"]
[Board "88"]
[TimeControl "180+1"]
[WhiteFideId "925659"]
[BlackFideId "14162180"]
[WhiteElo "2442"]
[BlackElo "2618"]
[WhiteTeam "SRB"]
[BlackTeam "UKR"]
[WhiteClock "0:01:17"]
[BlackClock "0:00:00"]

1. b3 {[%clk 0:03:00]}  e5 {[%clk 0:02:57]} 2. Bb2 {[%clk 0:03:01]}  Nc6 {[%clk 0:02:57]} 3. e3 {[%clk 0:03:00]}  d5 {[%clk 0:02:58]} 4. Bb5 {[%clk 0:03:00]}  Ne7 {[%clk 0:02:59]} 5. d4 {[%clk 0:02:55]}  exd4 {[%clk 0:02:51]} 6. Qxd4 {[%clk 0:02:54]}  a6 {[%clk 0:02:46]} 7. Bxc6+ {[%clk 0:02:54]}  Nxc6 {[%clk 0:02:47]} 8. Qd2 {[%clk 0:02:54]}  Bb4 {[%clk 0:02:44]} 9. Nc3 {[%clk 0:02:50]}  O-O {[%clk 0:02:37]} 10. O-O-O {[%clk 0:02:49]}  Be6 {[%clk 0:02:33]} 11. a3 {[%clk 0:02:49]}  Bxc3 {[%clk 0:02:12]} 12. Qxc3 {[%clk 0:02:49]}  Qg5 {[%clk 0:02:00]} 13. Nf3 {[%clk 0:02:48]}  Qh6 {[%clk 0:01:58]} 14. g4 {[%clk 0:02:32]}  f6 {[%clk 0:01:30]} 15. Rhg1 {[%clk 0:02:28]}  Qg6 {[%clk 0:01:19]} 16. h3 {[%clk 0:02:06]}  Qe4 {[%clk 0:01:08]} 17. Nd4 {[%clk 0:02:00]}  Nxd4 {[%clk 0:01:04]} 18. Rxd4 {[%clk 0:02:00]}  Qe5 {[%clk 0:01:05]} 19. f4 {[%clk 0:01:50]}  Qd6 {[%clk 0:01:04]} 20. g5 {[%clk 0:01:48]}  c5 {[%clk 0:00:45]} 21. gxf6 {[%clk 0:01:42]}  cxd4 {[%clk 0:00:42]} 22. Rxg7+ {[%clk 0:01:41]}  Kh8 {[%clk 0:00:41]} 23. Qd3 {[%clk 0:01:42]}  Bg8 {[%clk 0:00:36]} 24. Bxd4 {[%clk 0:01:41]}  Rf7 {[%clk 0:00:36]} 25. Qf5 {[%clk 0:01:33]}  Raf8 {[%clk 0:00:30]} 26. Qg5 {[%clk 0:01:32]}  Qe6 {[%clk 0:00:21]} 27. h4 {[%clk 0:01:27]}  Qe4 {[%clk 0:00:07]} 28. h5 {[%clk 0:01:18]}  Qh1+ {[%clk 0:00:00]} 29. Kb2 {[%clk 0:01:17]} 1-0